Cogmind - Beta 13 @@@ ROGUE MODE // 2024.04.09 @ 16:36:21 Player: Arc Result: Destroyed by Y-45 Defender with Heavy Assault Rifle Performance ------------- Evolutions (1) 500 Regions Visited (2) 400 Robots Destroyed (45) 225 Value Destroyed (1093) 1093 Prototype IDs (2) 40 Alien Tech Used (0) 0 Bonus (0) 0 TOTAL SCORE: 2258 Bonus ------- None Cogmind --------- Core Integrity 0/400 Matter 252/300 Energy 261/265 System Corruption 5% Temperature Cool (27) Movement Walking (120) Location -9/Materials Parts ------- > --- POWER (1) -------- Reinforced Ion Engine > --- PROPULSION (4) --- Aluminum Leg Aluminum Leg Aluminum Leg Aluminum Leg > --- UTILITY (2) ------ Medium Storage Unit Hacking Suite > --- WEAPON (2) ------- Light Cannon Light Cannon > --- INVENTORY (10) --- Light Ion Engine Aluminum Leg Improved Heat Sink Small Storage Unit Signal Interpreter Targeting Computer Peak State ------------ > --- POWER ------------ Light Nuclear Core > --- PROPULSION ------- Aluminum Leg Aluminum Leg Aluminum Leg Aluminum Leg > --- UTILITY ---------- Medium Storage Unit Hacking Suite > --- WEAPON ----------- Heavy Assault Rifle Heavy Assault Rifle > --- INVENTORY -------- Light Ion Engine Aluminum Leg Improved Heat Sink Small Storage Unit Signal Interpreter Targeting Computer Light Cannon Light Cannon [Rating: 16] Favorites ----------- Power Light Nuclear Core Engine Light Ion Engine Power Core Light Nuclear Core Propulsion Light Treads Treads Light Treads Leg Aluminum Leg Utility Hacking Suite Storage Small Storage Unit Hackware Hacking Suite Weapon Light Cannon Energy Gun Medium Laser Ballistic Gun Heavy Assault Rifle Ballistic Cannon Light Cannon Special Weapon Mining Laser Slashing Weapon Mining Claw Build | -11 -10 -9 ------- Run | Yrd Mat Mat Slots Evolved 2 | . . 2 Power . | . . . Propulsion 2 | . . 2 Utility . | . . . Weapon . | . . . Parts Attached 36 | 7 14 15 Power 5 | 1 2 2 Engine 3 | 1 1 1 Core 2 | . 1 1 Reactor . | . . . Propulsion 8 | 2 1 5 Treads 4 | 2 1 1 Leg 4 | . . 4 Wheel . | . . . Hover . | . . . Flight . | . . . Utility 3 | 1 2 . Device . | . . . Storage 2 | 1 1 . Processor . | . . . Hackware 1 | . 1 . Protection . | . . . Artifact . | . . . Weapon 20 | 3 9 8 Energy Gun 2 | 2 . . Energy Cannon . | . . . Ballistic Gun 4 | 1 . 3 Ballistic Cannon 10 | . 6 4 Launcher . | . . . Special Weapon 2 | . 2 . Impact Weapon . | . . . Slashing Weapon 2 | . 1 1 Piercing Weapon . | . . . Special Melee Weapon . | . . . Unidentified Prototypes . | . . . Parts Lost 10 | . . 10 Power 2 | . . 2 Propulsion 3 | . . 3 Utility . | . . . Weapon 5 | . . 5 Highest Loss Streak 5 | . . 5 To Critical Strikes . | . . . Average Slot Usage (%) 93 | . 97 82 Engine 4 | . 5 . Core 8 | . 8 8 Treads 24 | . 27 13 Leg 4 | . . 16 Storage 13 | . 14 11 Hackware 11 | . 11 11 Energy Gun 1 | . 2 . Ballistic Gun 4 | . 2 8 Ballistic Cannon 19 | . 22 11 Naked Turns . | . . . Heaviest Build 26 | 11 21 26 Greatest Support 60 | 40 40 60 Greatest Overweight (x) 1 | . . 1 Average Overweight (x) . | . . . Largest Inventory Capacity 10 | 8 10 10 Average Capacity 8 | 6 8 10 Most Carried 9 | 5 9 9 Average Carried 6 | 2 6 7 Final Capacity 10 | 8 10 10 Final Carried 9 | 2 9 6 Class Distribution -------------------- 88% | Mutant 11% | Scavenger-Mutant Dominant Class ---------------- Mutant | -10/Materials Mutant | -9/Materials Resources | -11 -10 -9 ----------- Run | Yrd Mat Mat Matter Collected 1129 | 244 286 599 Remotely . | . . . Salvage Created 1417 | . 595 822 Parts 107 | . 56 51 Haulers Intercepted 1 | . 1 . Recyclers Shooed 6 | . 4 2 Parts Field Recycled . | . . . Retrieved Matter . | . . . Parts Self-Destructed . | . . . Prevented . | . . . Kills | -11 -10 -9 ------- Run | Yrd Mat Mat Combat Hostiles Destroyed 31 | . 16 15 Guns 13 | . 5 8 Cannons 18 | . 11 7 Classes Destroyed 9 | . 6 3 Builder 1 | . . 1 Hauler 1 | . 1 . Recycler 5 | . 2 3 Operator 2 | . 2 . Watcher 5 | . 2 3 Swarmer 8 | . 6 2 Grunt 18 | . 10 8 Brawler 1 | . . 1 Sentry 4 | . . 4 Best Kill Streak 7 | . 7 6 Combat Bots Only 6 | . 6 5 Max Kills in Single Turn 2 | . 1 2 Gunslinging 1 | . . 1 Exploded . | . . . Melee . | . . . Uniques/NPCs Destroyed . | . . . Combat | -11 -10 -9 -------- Run | Yrd Mat Mat Hostile Shots Fired 206 | . 77 129 Missed 49 | . 20 29 Damage Taken 2207 | . 578 1629 Core 555 | . 150 405 Absorbed by Shields . | . . . Regen/Repaired (Parts) 98 | . 98 . Core Remaining (%) 70 | 100 40 . Volleys Fired 148 | 8 74 66 Largest 2 | 1 2 2 Hottest 135 | 40 135 70 Shots Fired 247 | 8 138 101 Gun 122 | 8 59 55 Cannon 121 | . 75 46 Launcher . | . . . Special 4 | . 4 . Kinetic 209 | . 108 101 Thermal 30 | . 30 . Explosive . | . . . Electromagnetic 8 | 8 . . Robot Hit Streak 13 | 3 10 13 Robot Miss Streak 6 | 2 6 2 Penetration Max . | . . . Secondary Targets 1 | . . 1 Max Gunslinging Chain 1 | . . 1 Shots Hit Robots 142 | 4 72 66 Core Hits 59 | 1 29 29 Critical Kills . | . . . Critical Parts Destroyed 1 | . . 1 Critical Strikes 6 | . 3 3 Burn 1 | . 1 . Destroy 1 | . . 1 Blast 4 | . 2 2 Melee Attacks 7 | . 3 4 Impact . | . . . Slashing 7 | . 3 4 Piercing . | . . . Sneak Attacks . | . . . Combat Hostiles . | . . . Follow-up Attacks . | . . . Damage Inflicted 2182 | 54 980 1148 Guns 882 | 54 325 503 Cannons 1295 | . 654 641 Explosions . | . . . Melee . | . . . Ramming 5 | . 1 4 Kinetic 1986 | . 842 1144 Thermal 137 | . 137 . Explosive . | . . . Electromagnetic 54 | 54 . . Impact . | . . . Slashing . | . . . Piercing . | . . . Highest Corruption 5 | . . 5 Average Corruption 5 | . . 5 Corruption Purged . | . . . Corruption Blocked . | . . . Effects 4 | . . 4 Message Errors 2 | . . 2 Data Loss (major) 1 | . . 1 Alerts 1 | . . 1 Overload Shots . | . . . Overflow Damage 7 | . 7 . Projectiles 7 | . 7 . Explosions . | . . . Melee . | . . . Knockbacks 8 | . 5 3 Impact . | . . . Kinetic 8 | . 5 3 Secondary . | . . . Self-Inflicted Damage . | . . . Shots . | . . . Rammed 5 | . 2 3 Targets Rammed 5 | . 2 3 Kicked . | . . . Crushed . | . . . Highest Temperature 276 | 15 276 231 Average Temperature 65 | 10 65 64 Received Heat Transfer 876 | . 243 633 Siege Activations . | . . . Robots Corrupted . | . . . Combat Hostiles . | . . . Parts Fried . | . . . Impact Corruptions . | . . . Robots Melted . | . . . Combat Hostiles . | . . . Parts Melted 1 | . 1 . Heat Transferred 481 | . 481 . Parts Sabotaged . | . . . Parts Stolen . | . . . Parts Stripped . | . . . Power Chain Reactions . | . . . Alert | -11 -10 -9 ------- Run | Yrd Mat Mat Peak Influence 306 | . 306 247 Initial 15 | . . 15 Average 126 | . 137 112 Maximum Alert Level 1 | . 1 1 Low Security (%) 89 | 100 89 89 Level 1 10 | . 10 10 Level 2 . | . . . Level 3 . | . . . Level 4 . | . . . Level 5 . | . . . High Security . | . . . Max Security . | . . . Squads Dispatched 5 | . 4 1 Investigation 2 | . 2 . Extermination . | . . . Reinforcement 3 | . 2 1 Assault . | . . . Garrison . | . . . Intercept . | . . . Searches Triggered . | . . . Construction Impeded . | . . . Haulers Reinforced . | . . . Active Scanning Responses . | . . . Cargo Convoy Interrupts . | . . . Stealth | -11 -10 -9 --------- Run | Yrd Mat Mat Distress Signals 4 | . 2 2 Communications Jammed . | . . . Distress Signals . | . . . Times Spotted 51 | . 24 27 Peak Tracking Total 5 | . 3 5 Tactical Retreats 2 | . 1 1 Traps | -11 -10 -9 ------- Run | Yrd Mat Mat Traps Triggered 2 | . 2 . Indirectly . | . . . Trap Hack Attempts . | . . . Triggered . | . . . Disarmed . | . . . Reprogrammed . | . . . Reused . | . . . Traps Extracted . | . . . Installed . | . . . Triggered . | . . . Machines | -11 -10 -9 ---------- Run | Yrd Mat Mat Machines Disabled 1 | . 1 . Max in Single Turn 1 | . 1 . Machines Repaired . | . . . Machines Dismantled . | . . . Machines Sabotaged . | . . . Overloaded Fab Kills . | . . . Hacking | -11 -10 -9 --------- Run | Yrd Mat Mat Machines Accessed 10 | . 7 3 Terminals 8 | . 6 2 Fabricators . | . . . Repair Stations 1 | . 1 . Recycling Units 1 | . . 1 Scanalyzers . | . . . Garrison Access . | . . . Total Hacks 20 | . 13 7 Successful 12 | . 9 3 Failed 8 | . 4 4 Catastrophic 1 | . 1 . Database Lockouts . | . . . Manual . | . . . Terminals 15 | . 11 4 Fabricators . | . . . Repair Stations 2 | . 2 . Recycling Units 3 | . . 3 Scanalyzers . | . . . Garrison Access . | . . . Terminal Hacks 8 | . 7 1 Prototype ID Bank 1 | . 1 . Locate Traps 2 | . 2 . Dispatch Records 1 | . 1 . Security Status 1 | . 1 . Registered Components 1 | . 1 . Zone Layout 2 | . 1 1 Fabricator Hacks . | . . . Repair Station Hacks 2 | . 2 . Scan Component 1 | . 1 . Repair 1 | . 1 . Recycling Unit Hacks 2 | . . 2 Report Inventory 1 | . . 1 Retrieve Components 1 | . . 1 Scanalyzer . | . . . Garrison Access Hacks . | . . . Unauthorized Hacks . | . . . Terminals . | . . . Fabricators . | . . . Repair Stations . | . . . Recycling Units . | . . . Scanalyzers . | . . . Garrison Access . | . . . Data Cores Recovered . | . . . Used . | . . . Hacking Detections 6 | . 5 1 Full Trace Events 2 | . 1 1 Feedback Events . | . . . Feedback Blocked . | . . . Robot Schematics Acquired . | . . . Robots Built . | . . . Authchips . | . . . Time . | . . . Total Robot Build Rating . | . . . Part Schematics Acquired . | . . . Parts Built . | . . . Authchips . | . . . Time . | . . . Total Part Build Rating . | . . . Parts Repaired 1 | . 1 . Time 26 | . 26 . Parts Recycled . | . . . Recycled Matter . | . . . Retrieved Matter . | . . . Retrieved Components 9 | . . 9 Parts Scanalyzed . | . . . Part Schematics Acquired . | . . . Parts Damaged . | . . . Bothacking | -11 -10 -9 ------------ Run | Yrd Mat Mat Used RIF Installer . | . . . Robots Hacked . | . . . Non-combat . | . . . Combat . | . . . Robot Hacks Applied . | . . . Relay Couplers Released . | . . . Fabnet Peak Effective % . | . . . Robots Rewired . | . . . Allies Hacked . | . . . Hacks Repelled . | . . . Allies | -11 -10 -9 -------- Run | Yrd Mat Mat Total Allies . | . . . Largest Group . | . . . Highest-Rated Group . | . . . Highest-Rated Ally . | . . . Total Orders . | . . . Ally Attacks . | . . . Total Damage . | . . . Kills . | . . . Allies Corrupted . | . . . Allies Melted . | . . . Intel | -11 -10 -9 ------- Run | Yrd Mat Mat Robot Analysis Total . | . . . Derelict Logs Recovered . | . . . Drone Launches . | . . . Drone Recoveries . | . . . Exploration | -11 -10 -9 ------------- Run | Yrd Mat Mat Turns Passed 2287 | 85 1607 595 Spaces Moved 1113 | 42 832 239 Core 12 | 12 . . Treads 981 | 30 832 119 Legs 120 | . . 120 Wheels . | . . . Hover . | . . . Flight . | . . . Fastest Speed 50 | 50 160 120 Average Speed 159 | 128 160 162 Slowest Speed 240 | 160 160 240 Overloaded Moves . | . . . Propulsion Burnouts . | . . . Robots Hopped . | . . . Cave-ins Triggered 1 | . . 1 Exploration Rate (%) 39 | 3 98 18 Regions Visited 2 Branch Regions . Pre-discovered Areas . | . . . Known Exits Taken . | . . . Unknown Exits Taken 2 | 1 1 . Scrap Searched . | . . . Spaces Dug 9 | . 7 2 Terrain Destroyed 9 | . 7 2 Melee 5 | . 3 2 Projectile 4 | . 4 . AOE . | . . . Terrain Rammed . | . . . Walls Destroyed . | . . . Machines Disabled . | . . . Actions | -11 -10 -9 --------- Run | Yrd Mat Mat Total 1363 | 65 962 336 Wait 10 | 1 9 . Move 1111 | 41 831 239 Hop . | . . . Pick Up 35 | 8 18 9 Fast Attach . | . . . Attach 23 | 6 5 12 Detach 2 | . 2 . Swap 13 | 1 9 3 Drop 9 | . 9 . Fire 148 | 8 74 66 Melee 7 | . 3 4 Ram . | . . . Kick . | . . . Crush 5 | . 2 3 Escape Stasis . | . . . Rewire . | . . . Trap . | . . . Miscellaneous . | . . . Route ------- -11/Scrapyard -10/Materials (discovered 5 exits: *Mat x3 / [*Min x2]) -9/Materials (discovered 1 exit: [*Min]) History --------- Turn | Location | Event 8 | -11/Scrapyard | Discovered new exit (range 15) 86 | -11/Scrapyard | Entered Materials 314 | -10/Materials | Build established: Mutant 587 | -10/Materials | Repaired Lgt. Treads 603 | -10/Materials | Discovered new exit (range 15) 709 | -10/Materials | Core integrity fell below 50% 759 | -10/Materials | Discovered new exit (range 12) 1316 | -10/Materials | Discovered new exit (range 11) 1386 | -10/Materials | Discovered new exit (range 6) 1519 | -10/Materials | Discovered new exit (range 16) 1693 | -10/Materials | Entered another Materials area 1693 | -9/Materials | Evolved 2 slots: Propulsion x2 1911 | -9/Materials | Lost 5 parts (1p2n2w) 1961 | -9/Materials | Discovered new exit (range 15) 2109 | -9/Materials | Crushed by falling debris 2109 | -9/Materials | Core integrity fell below 50% 2219 | -9/Materials | Core integrity fell below 20% 2288 | -9/Materials | Destroyed by Y-45 Defender with Heavy Assault Rifle Last Messages --------------- Hvy. Assault Rifle destroyed. K-01 Serf collects debris. T-07 Excavator is excavating. G-34 Mercenary destroyed. R-06 Scavenger collects Ion Engine. R-06 Scavenger collects Aluminum Leg. T-07 Excavator is excavating. U-05 Engineer lays Concrete. Hvy. Assault Rifle destroyed. T-07 Excavator is excavating. U-05 Engineer lays Concrete. Y-45 Defender destroyed. T-07 Excavator is excavating. K-01 Serf collects debris. U-05 Engineer lays Concrete. K-01 Serf collects debris. Acquired 38 matter. U-05 Engineer lays Concrete. K-01 Serf collects debris. Critical hit (Burn: +37). Map ----- +----------------------------------------------------+ | ?????????????????????????????????????????????????? | | ?????????????????????????????????????????????????? | | ?????????????????????????????????????????????????? | | ?????????????????????????????????????????????????? | | ?????????????????????????????????????????????????? | | ?????????????????????????????????????????????????? | | ?????????????????????????????????????????????????? | | ?????????????????????????????????????????????????? | | ?????????????????????????????????????????????????? | | ????????????????????????? ?????????????????????? | | ????????????????????????? ????????????????????? | | ????????????????????????? #????????????????????? | | ????????????????????????? #????????????????????? | | ????????????????????????# #????????????????????? | | ???????????????????????? %#????????????????????? | | ????????????????????????# % #????????????????????? | | ????????????????????????# Y #????????????????????? | | ???????????????????#????# #????????????????????? | | ???????????# # # + ##????????????? | | ???????????# # """ # # #?????????????? | | ???????????# + """ # # #?????????????? | | ???????????# # """ #k # #?????????????? | | ???????????# # #% #########????????????? | | ???????????### ### #k[k/ ????????????? | | ?????????????# #?##+#####%!%# ????????????? | | ?????????????# #??# @!*# ????????????? | | ?????????????# #??# a =k%# ????????????? | | ?????######### #??#! % /[== # ????????????? | | ?????? ## #??#== * # ????????????? | | ??#?? ## #??#%####### #########????????????? | | ??# ## #?##/#####? ????###????????????? | | ??# """ """ ## ### #?? u ???# ????????????? | | ??? """ """ # ## "" #?? u #??# ????????????? | | ??? """ """ / + T" #??# #??# ????????????? | | ??? # ## "" #?######### ????????????? | | ????? # ## #?#"" " ""# ????????????? | | ??###+###### ## #?# " " " # ????????????? | | +###% %% ### ##+####### ##+????????????? | | %% %% ????????????? | | < ????????????? | | ! %% % % ????????????? | | #### ### ##+####### ##+????????????? | | ##?## ########## #?######### ????????????? | | #### # """ #?#"S #?????????# ????????????? | | # #="Y" #?#""" #?????????# ????????????? | | " + + != ### "" #?????????# ????????????? | | " # # * ### #?????????# ????????????? | | = # # != ### #?????????# ????????????? | | ##### # ########+#????########????????????? | | ########?????????????????????????????????? | +----------------------------------------------------+ Best States ------------- Heat Dissipation 28 Energy Generation 14 Energy Capacity 265 Matter Stores 300 Matter Capacity 300 Sight Range 16 Terrain Scan Density 10 Evasion (%) 55 Recoil Reduction 3 Offensive Hacking 10 Item Schematics ----------------- None Robot Schematics ------------------ None Fabricated ------------ Nothing Alien Tech Used ----------------- None Achievements -------------- Oops Challenges ------------ None Game ------ Seed DeliveryHugeCleaver Manual? 0 Play Time 00:25:45 Cumulative 9.0 hours Start 2024.04.09 @ 16:10:56 End 2024.04.09 @ 16:36:21 Sessions 1 Manual Loads 0 Difficulty Rogue Special Mode None Game No. 12 Rogue 12 Adventurer 0 Explorer 0 Win Type - Total 0 Types 0/0/0/0/0/0/0/0/0 Lore% 10 Gallery% 10 Achievement% 12 Wizard Run 0 Options --------- Layout 1 ASCII 0 Keyboard 0 Movement Mouse Keybinds 0 Fullscreen 1 Font 16/SmallcapsGlow Map View 55x38 Zoom Use 0% Tactical HUD 0 Map Filters NONE Filters NONE Steam 1 RUN: 5f85092e-4903-4830-aa5d-f5149f6af2b5